bitfinex/quotes_ETHUSD_20241129
["timestamp","ask_amount","ask_price","bid_price","bid_amount"]
[1732862279578,3.05616197,3576.2,3575.9,0.06672822]
[1732862279765,2.79628,3576.2,3575.9,0.06672822]
[1732862281440,2.79634,3576.1,3575.9,0.06672822]
[1732862283436,0.26009048,3576.0,3575.9,0.06672822]
[1732862283862,2.79642,3576.0,3575.9,0.06672822]
[1732862284064,3.05650967,3576.0,3575.9,0.06672822]
[1732862284390,4.9976652,3576.0,3575.1,0.8189]
[1732862284564,2.79682,3575.5,3575.2,0.06480303]
[1732862284748,2.79682,3575.5,3575.1,0.8189]
[1732862284942,2.79665,3575.7,3575.1,0.8189]
[1732862285155,3.05686445,3575.6,3575.2,0.06480303]
[1732862285355,2.79673,3575.6,3575.2,0.06480303]
[1732862285558,0.26013547,3575.5,3575.3,0.796]
[1732862285789,3.05650333,3576.1,3575.5,0.79]
[1732862285946,0.26015333,3576.0,3575.5,0.79]
[1732862286252,2.79635,3576.1,3575.6,0.06476379]
[1732862286452,0.26020322,3576.0,3575.7,0.8332]
[1732862286771,0.26020543,3576.2,3575.7,0.8332]
[1732862286975,0.26020543,3576.1,3575.8,0.06467728]
[1732862287171,2.7964,3576.1,3575.7,0.8332]
[1732862287346,0.26020126,3576.0,3575.7,0.8332]
[1732862287547,2.7964,3576.1,3575.8,0.06467728]
[1732862287846,0.26024401,3576.0,3575.7,0.8332]
[1732862288047,2.7964,3576.1,3575.9,0.06465075]
[1732862288277,0.26024365,3576.0,3575.8,0.06467728]
[1732862288482,2.7964,3576.1,3576.0,0.06462422]
[1732862288658,3.05670154,3576.1,3575.9,0.06465075]
[1732862288845,2.7964,3576.1,3576.0,0.06462422]
[1732862289045,3.05670518,3576.1,3576.0,0.06462422]
[1732862289246,3.05670518,3576.1,3575.7,0.8332]
[1732862289453,0.26030518,3576.0,3575.7,0.8332]
[1732862289661,0.26030518,3575.9,3575.7,0.8332]
[1732862289960,0.4163896,3576.2,3575.7,0.8332]
[1732862290172,0.26036885,3576.1,3575.7,1.475879]
[1732862290342,0.26036885,3576.0,3575.7,1.475879]
[1732862290543,3.21278016,3576.3,3575.7,1.475879]
[1732862290750,0.26042695,3576.2,3575.9,2.79649]
[1732862290988,0.41659016,3576.6,3576.0,3.58622]
[1732862291197,0.26044856,3576.5,3576.2,0.7898]
[1732862291349,0.26044856,3576.4,3576.2,0.7898]
[1732862291689,0.26048783,3576.3,3576.2,0.7898]
[1732862292551,0.67742782,3576.3,3576.2,0.7898]
[1732862293876,0.67756068,3576.3,3576.2,0.7898]
[1732862294100,0.26060026,3576.3,3576.2,0.7898]
[1732862295275,0.26060026,3576.3,3576.2,3.58606]
[1732862295485,0.26060026,3576.3,3576.2,1.428055]
[1732862297105,0.26055441,3576.3,3576.2,1.428055]
[1732862297404,0.26055441,3576.3,3576.2,0.7898]
[1732862298199,0.67741526,3576.3,3576.2,0.7898]
[1732862298801,0.67741526,3576.3,3575.8,0.774]
[1732862299011,0.26055441,3576.2,3575.8,0.774]
[1732862299225,0.26055441,3576.1,3575.8,3.57055]
[1732862299502,0.26055441,3576.0,3575.8,0.774]
[1732862299688,2.79619,3576.3,3575.8,0.774]
[1732862300011,0.26053612,3576.2,3575.8,0.774]
[1732862300188,0.26053612,3576.1,3575.8,0.774]
[1732862300392,0.26053612,3576.0,3575.9,0.06439713]
[1732862300614,0.26053014,3576.0,3575.9,0.06439713]
[1732862300905,0.26053014,3576.0,3575.9,0.42790284]
[1732862301404,0.26053014,3576.0,3575.9,0.06439713]
[1732862305722,0.26077459,3576.0,3575.9,0.06439713]
[1732862313024,3.4744968,3576.0,3575.9,0.06439713]
[1732862313413,3.4744968,3576.0,3575.5,0.7803]
[1732862313613,0.26077459,3575.9,3575.6,0.06447114]
[1732862313825,0.26077459,3575.8,3575.6,0.06447114]
[1732862314113,0.26077459,3575.7,3575.6,0.06447114]
[1732862315251,2.79642,3576.0,3575.6,0.06447114]
[1732862315450,0.67832019,3575.9,3575.6,0.06447114]
[1732862315676,0.26089238,3575.8,3575.6,0.06447114]
[1732862315835,0.26089238,3575.7,3575.6,0.06447114]
[1732862316250,0.26089238,3575.7,3575.2,0.8205]
[1732862316449,0.26089238,3575.6,3575.2,0.8205]
[1732862316651,2.79671,3575.7,3575.2,0.8205]
[1732862316849,3.05761066,3575.6,3575.2,0.8205]
[1732862317136,0.26087066,3575.5,3575.2,0.8205]
[1732862317360,2.79674,3575.6,3575.2,0.8205]
[1732862317556,0.26083557,3575.5,3575.2,0.8205]
[1732862317757,0.0814,3575.7,3574.9,0.8184]
[1732862317758,1.32134394,3575.7,3574.9,0.8184]
[1732862317959,2.79711,3575.2,3574.6,0.7902]
[1732862318241,0.26081933,3575.1,3574.6,0.7902]
[1732862318448,0.26081933,3575.0,3574.6,0.7902]
[1732862318656,0.26081933,3574.9,3574.6,0.7902]
[1732862318968,2.79719,3575.1,3574.6,0.7902]
[1732862319170,3.05786685,3575.0,3574.6,0.7902]
[1732862319479,3.05778994,3574.9,3574.6,0.7902]
[1732862319767,2.79728,3574.9,3574.6,0.7902]
[1732862321837,2.79728,3574.9,3574.2,0.7874]
[1732862322061,2.79737,3574.8,3574.2,0.99013439]
[1732862322660,2.8786,3575.1,3574.2,0.99013439]
[1732862322974,2.79738,3574.8,3574.2,0.7874]
[1732862325080,2.7972,3575.0,3574.2,0.7874]
[1732862325262,2.79746,3574.7,3574.2,0.7874]
[1732862327280,2.7972,3575.0,3574.2,0.7874]
[1732862327684,2.79744,3574.7,3574.2,0.7874]
[1732862328062,0.0814,3575.1,3574.2,1.14593]
[1732862328391,1.49988742,3575.0,3574.2,0.7874]
[1732862328687,2.79805,3574.0,3573.4,0.7793]
[1732862329057,2.79807,3573.9,3573.4,0.7793]
[1732862329470,2.79797,3574.1,3573.4,0.7793]
[1732862329854,2.79802,3574.0,3573.4,0.7793]
[1732862330495,2.79802,3574.0,3573.5,0.0592647]
[1732862330996,2.79791,3574.1,3573.5,0.0592647]
[1732862331294,2.79798,3574.0,3573.5,0.0592647]
[1732862332682,1.32134394,3574.4,3573.5,0.0592647]
[1732862332888,2.79816,3573.8,3573.5,0.0592647]
[1732862335372,5.59637,3573.8,3573.5,0.0592647]
[1732862335575,2.79816,3573.8,3573.5,0.0592647]
[1732862336801,2.79799,3574.0,3573.5,0.0592647]
[1732862337503,2.79793,3574.1,3573.5,0.0592647]
[1732862338712,2.79798,3574.0,3573.5,0.0592647]
[1732862340386,3.0,3574.5,3573.6,0.7699]
[1732862340714,2.79743,3574.7,3574.0,3.56784]
[1732862341080,2.79743,3574.7,3574.1,0.05741412]
[1732862341282,0.0814,3575.0,3574.2,2.79779]
[1732862341476,2.79728,3574.9,3574.3,0.7916]
[1732862341833,0.34103094,3575.0,3574.3,0.7916]
[1732862341834,2.79737,3574.8,3574.3,0.84896102]
[1732862342016,2.79752,3574.6,3574.3,0.84896102]
[1732862342197,0.0814,3575.0,3574.3,0.05736102]
[1732862342198,2.79759,3574.5,3574.3,0.05736102]
[1732862342714,2.79768,3574.4,3574.0,0.804]
[1732862343615,2.87908,3574.4,3573.5,0.769]
[1732862343819,2.79787,3574.2,3573.6,0.356744]
[1732862343977,2.79768,3574.4,3573.6,3.155024]
[1732862344178,2.79768,3574.4,3573.6,0.356744]
[1732862344374,2.79759,3574.5,3573.8,3.57123]
[1732862345512,2.79759,3574.5,3573.9,0.05746724]
[1732862346332,0.26018195,3574.4,3573.9,0.05746724]
[1732862346623,2.79759,3574.5,3573.9,0.05746724]
[1732862346813,0.26017956,3574.4,3573.9,0.05746724]
[1732862347123,2.79759,3574.5,3573.9,0.73583936]
[1732862347327,0.26030692,3574.4,3573.9,0.73583936]
[1732862347537,0.41649108,3574.6,3573.9,3.53388936]
[1732862347698,2.79767,3574.4,3573.9,0.05746724]
[1732862348032,3.05813642,3574.3,3573.9,0.05746724]
[1732862348201,2.79778,3574.3,3573.9,0.05746724]
[1732862349510,2.7976,3574.5,3573.9,0.05746724]
[1732862349702,2.79784,3574.2,3573.9,0.05746724]
[1732862350501,2.79767,3574.4,3573.9,0.05746724]
[1732862350708,2.7979,3574.1,3573.9,0.05746724]
[1732862352840,3.05857489,3574.0,3573.9,0.05746724]
[1732862353244,3.05857489,3574.0,3573.5,0.7836]
[1732862353541,3.05866489,3573.9,3573.5,0.7836]
[1732862353745,2.79807,3573.9,3573.5,0.7836]
[1732862356448,0.26078693,3573.8,3573.5,0.7836]
[1732862356617,2.79807,3573.9,3573.5,0.7836]
[1732862356806,0.26079218,3573.8,3573.5,0.7836]
[1732862357007,2.79807,3573.9,3573.5,0.7836]
[1732862357207,0.26079186,3573.8,3573.5,0.7836]
[1732862357443,2.79807,3573.9,3573.5,0.7836]
[1732862357648,0.2608627,3573.8,3573.5,0.7836]
[1732862357847,2.79807,3573.9,3573.5,0.7836]
[1732862358147,0.2608621,3573.8,3573.5,0.7836]
[1732862358352,2.79807,3573.9,3573.5,0.7836]
[1732862358507,0.26095416,3573.8,3573.5,0.7836]
[1732862358709,2.79807,3573.9,3573.5,0.7836]
[1732862358906,0.26094989,3573.8,3573.5,0.7836]
[1732862359110,2.79807,3573.9,3573.5,0.7836]
[1732862359371,0.26095049,3573.8,3573.5,0.7836]
[1732862359566,2.79807,3573.9,3573.5,0.7836]
[1732862359857,0.26094291,3573.8,3573.5,0.7836]
[1732862360060,2.79807,3573.9,3573.5,0.7836]
[1732862360359,0.26088281,3573.8,3573.5,0.7836]
[1732862360546,0.26088281,3573.7,3573.6,0.05789278]
[1732862361678,0.26083347,3573.7,3573.6,0.05789278]
[1732862365150,0.2608053,3573.7,3573.6,0.05789278]
[1732862365549,3.05901296,3573.7,3573.6,0.05789278]
[1732862365865,3.05901296,3573.7,3573.4,0.00578802]
[1732862366037,0.26079296,3573.6,3573.4,0.00578802]
[1732862366244,0.26079296,3573.5,3573.4,0.00578802]
[1732862367563,2.79817,3573.8,3573.4,0.00578802]
[1732862367757,0.2607153,3573.7,3573.4,0.00578802]
[1732862367935,0.2607153,3573.6,3573.4,0.00578802]
[1732862368138,0.2607153,3573.5,3573.4,0.00578802]
[1732862369577,0.8107153,3573.5,3573.4,0.00578802]
[1732862370076,0.55,3573.6,3573.4,0.00578802]
[1732862370777,2.79826,3573.7,3573.4,0.00578802]
[1732862371073,0.81066909,3573.6,3573.4,0.00578802]
[1732862371252,0.55,3573.6,3573.4,0.00578802]
[1732862371777,0.81069605,3573.5,3573.4,0.00578802]
[1732862372148,2.79826,3573.7,3573.4,0.00578802]
[1732862372149,0.55,3573.6,3573.4,0.00578802]
[1732862372462,0.81072407,3573.5,3573.4,0.00578802]
[1732862373166,3.34831,3573.6,3573.4,0.00578802]
[1732862373369,0.81074678,3573.5,3573.4,0.00578802]
[1732862373903,0.26074678,3573.5,3573.4,0.00578802]
[1732862374198,0.41719583,3573.9,3573.5,0.7875]
[1732862374354,2.79782,3574.3,3573.5,0.7875]
[1732862374355,0.26076572,3573.8,3573.5,0.7875]
[1732862374549,0.26076572,3573.7,3573.5,0.7875]
[1732862374793,0.96722265,3574.0,3573.5,0.7875]
[1732862374954,0.2607665,3573.9,3573.5,0.7875]
[1732862375162,0.2607665,3573.8,3573.5,4.2248898]
[1732862375364,2.79771,3574.4,3573.6,0.05803787]
[1732862375564,0.41730875,3574.3,3573.7,3.57445]
[1732862375782,0.26081797,3574.2,3573.7,3.57445]
[1732862375977,0.26081797,3574.1,3573.8,2.85611475]
[1732862376309,0.26081797,3574.0,3573.8,0.05798475]
[1732862376467,0.41739353,3574.3,3573.8,0.05798475]
[1732862376663,0.26086783,3574.2,3573.7,0.7763]
[1732862376912,0.26086783,3574.1,3573.9,0.05786891]
[1732862377070,2.79768,3574.4,3573.7,3.57451]
[1732862377071,0.26086783,3574.0,3573.7,3.57451]
[1732862377273,0.41742568,3574.3,3573.8,2.79813]
[1732862377506,0.26088975,3574.2,3573.8,2.79813]
[1732862377693,0.26088975,3574.1,3573.8,2.79813]
[1732862378005,0.41742274,3574.3,3573.8,2.79813]
[1732862378211,0.26090633,3574.2,3573.8,2.79813]
[1732862378416,0.26090633,3574.1,3573.8,2.79813]
[1732862378574,0.41745094,3574.3,3573.9,2.79805]
[1732862378777,3.34761,3574.5,3573.9,2.79805]
[1732862378778,0.26092771,3574.2,3574.1,2.7979]
[1732862379020,0.4174812,3574.8,3574.2,3.62509]
[1732862379238,0.6784273,3574.7,3574.5,2.79758]
[1732862379394,3.2145412,3575.2,3574.6,0.7523]
[1732862379592,0.67838601,3575.1,3574.6,0.7523]
[1732862379918,3.47563601,3575.0,3574.6,0.7523]
[1732862380120,3.05823481,3574.9,3574.3,0.7534]
[1732862380292,0.55,3574.7,3574.3,0.7534]
[1732862380635,0.26090481,3574.6,3574.3,0.7534]
[1732862380918,3.34747,3574.7,3574.3,0.7534]
[1732862381084,0.26083653,3574.6,3574.3,0.7534]
[1732862381283,3.34747,3574.7,3574.3,0.7534]
[1732862381481,0.26079187,3574.6,3574.3,0.7534]
[1732862381682,3.34747,3574.7,3574.3,0.7534]
[1732862381876,0.26077637,3574.6,3574.3,0.7534]
[1732862382215,0.55,3574.9,3574.3,0.7534]
[1732862382421,0.55,3574.7,3574.3,3.55113]
[1732862382575,3.34728,3574.9,3574.3,3.55113]
[1732862382775,0.26073292,3574.8,3574.3,3.55113]
[1732862383016,0.26073292,3574.7,3574.3,3.55113]
[1732862383219,0.26067873,3574.8,3574.3,3.55113]
[1732862383423,3.34728,3574.9,3574.3,3.55113]
[1732862383620,0.26067826,3574.8,3574.3,3.55113]
[1732862383828,2.79705,3575.2,3574.3,1.33592949]
[1732862384124,0.81068335,3575.1,3574.5,2.79753]
[1732862384324,0.26068335,3575.0,3574.5,2.79753]
[1732862384485,0.26068335,3574.9,3574.5,2.79753]
[1732862384693,0.26068335,3575.0,3574.6,0.7666]
[1732862385202,3.05798335,3574.9,3574.6,0.7666]
[1732862385528,2.7973,3574.9,3574.7,0.05728545]
[1732862386824,0.55,3575.1,3574.7,0.05728545]
[1732862387030,3.0577278,3575.0,3574.7,0.05728545]
[1732862387231,2.79721,3575.0,3574.7,0.05728545]
[1732862388824,0.55,3575.1,3574.7,0.05728545]
[1732862389135,2.79735,3574.9,3574.7,0.05728545]
[1732862390634,2.79735,3574.9,3574.4,0.7755]
[1732862391466,2.79749,3574.7,3574.4,0.7755]
[1732862391818,2.79753,3574.6,3573.8,3.62327]
[1732862392039,2.79753,3574.6,3573.8,4.38941239]
[1732862392829,2.7976,3574.5,3573.8,4.38941239]
[1732862393031,2.79768,3574.4,3573.8,0.8252]
[1732862393745,2.879,3574.5,3573.8,0.8252]
[1732862393944,2.79789,3574.2,3573.8,0.8252]
[1732862396025,2.79791,3574.1,3573.8,0.8252]
[1732862396426,1.23994394,3574.4,3573.8,0.8252]
[1732862396631,2.79812,3573.9,3573.5,0.7615]
[1732862398854,2.87883,3574.7,3573.6,0.818]
[1732862399154,2.79759,3574.5,3573.6,0.818]
[1732862399356,2.79785,3574.2,3573.6,0.818]
[1732862400695,2.79759,3574.5,3573.6,0.818]
[1732862400871,0.26039248,3574.4,3573.8,2.79808]
[1732862401060,2.79776,3574.3,3573.9,0.7991]
[1732862401469,2.79762,3574.5,3573.9,0.7991]
[1732862401671,2.79762,3574.5,3573.9,3.59715]
[1732862401881,2.7975,3574.7,3574.0,0.8145]
[1732862402086,0.26046763,3574.6,3574.0,0.8145]
[1732862402285,3.05807763,3574.5,3574.0,0.8145]
[1732862402503,2.79746,3574.7,3574.0,3.61247]
[1732862402683,0.26052884,3574.6,3574.0,3.61247]
[1732862402883,2.79729,3574.9,3574.3,0.8145]
[1732862403189,0.26055331,3574.8,3574.5,2.79757]
[1732862403381,0.26064271,3575.1,3574.6,0.8145]
[1732862403564,0.26064271,3575.0,3574.6,0.8145]
[1732862403764,0.26064271,3574.9,3574.6,0.8145]
[1732862403966,2.79718,3575.1,3574.6,0.8145]
[1732862404155,0.26064456,3575.0,3574.6,0.8145]
[1732862404386,0.26064456,3574.9,3574.6,0.8145]
[1732862404695,2.79673,3575.6,3574.3,1.23994394]
[1732862404696,0.26069054,3575.2,3574.8,0.8193]
[1732862404898,0.26069054,3575.1,3574.8,0.8193]
[1732862405098,2.79685,3575.5,3574.8,0.8193]
[1732862405394,0.26071721,3575.4,3574.8,0.8193]
[1732862405599,0.26071721,3575.3,3575.0,3.58879]
[1732862405758,2.79673,3575.7,3575.0,3.988419]
[1732862405964,0.26071395,3575.6,3575.1,0.05535811]
[1732862406162,2.79673,3575.7,3575.1,0.05535811]
[1732862406163,0.26071395,3575.5,3575.1,0.05535811]
[1732862406355,2.79673,3575.7,3575.1,0.05535811]
[1732862406657,0.26065897,3575.6,3575.1,0.05535811]
[1732862406857,0.26065897,3575.5,3575.1,0.05535811]
[1732862407057,2.79698,3575.3,3575.1,0.05535811]
[1732862407288,2.79674,3575.6,3575.1,0.05535811]
[1732862407559,3.05749152,3575.5,3575.1,0.05535811]
[1732862407759,0.26062152,3575.4,3575.1,0.05535811]
[1732862407999,0.26062152,3575.3,3575.1,0.05535811]
[1732862408201,0.26062152,3575.4,3575.1,0.05535811]
[1732862408493,0.26062152,3575.3,3575.1,0.05535811]
[1732862408703,0.26062152,3575.7,3575.1,0.05535811]
[1732862408886,3.05735152,3575.6,3575.1,0.05535811]
[1732862409087,0.26062152,3575.5,3575.1,0.05535811]
[1732862409298,2.79673,3575.6,3575.1,0.05535811]
[1732862409596,0.26055199,3575.5,3575.1,0.05535811]
[1732862409758,2.79681,3575.5,3575.1,0.05535811]
[1732862409958,0.26055065,3575.4,3575.1,0.05535811]
[1732862410185,3.05744065,3575.4,3575.1,0.05535811]
[1732862410387,2.79689,3575.4,3575.1,0.05535811]
[1732862410587,0.26050969,3575.3,3575.1,0.05535811]
[1732862410792,3.05733104,3575.5,3575.1,0.05535811]
[1732862411101,0.26051104,3575.4,3575.1,0.05535811]
[1732862411306,0.26051104,3575.5,3575.1,0.05535811]
[1732862411603,3.05732104,3575.5,3575.1,0.05535811]
[1732862411769,3.05737743,3575.4,3575.1,0.05535811]
[1732862412096,2.79697,3575.3,3575.1,0.05535811]
[1732862412304,2.79668,3575.7,3575.2,0.7972]
[1732862412498,0.2604511,3575.6,3575.2,0.7972]
[1732862412710,0.2604511,3575.6,3575.3,0.05339409]
[1732862413198,3.0572011,3575.6,3575.3,0.05339409]
[1732862413411,0.0814,3575.9,3575.3,0.05339409]
[1732862413708,0.26042122,3575.8,3575.3,0.05339409]
[1732862414009,0.26042122,3575.7,3575.3,0.05339409]
[1732862414213,0.26042122,3575.6,3575.3,0.05339409]
[1732862414411,0.26042122,3575.8,3575.3,0.05339409]
[1732862414615,0.26042122,3575.7,3575.3,0.05339409]
[1732862415414,0.26042122,3575.8,3575.3,0.05339409]
[1732862415771,3.05702122,3575.8,3575.3,0.05339409]
[1732862416012,0.26042122,3575.7,3575.3,0.05339409]
[1732862416576,2.79649,3575.9,3575.3,0.05339409]
[1732862416775,0.26023036,3575.8,3575.3,0.05339409]
[1732862417084,2.79644,3576.0,3575.4,0.7876]
[1732862417284,2.7966,3575.8,3575.4,0.7876]
[1732862417485,2.7966,3575.8,3575.5,0.05308722]
[1732862418277,1.23994394,3575.9,3575.1,0.7876]
[1732862418477,2.79667,3575.7,3575.6,0.05306069]
[1732862418689,2.79667,3575.7,3575.1,0.7876]
[1732862419198,2.79667,3575.7,3575.4,0.00578802]
[1732862419776,2.79667,3575.7,3575.5,0.05308722]
[1732862420196,2.79673,3575.6,3575.5,0.05308722]
[1732862421215,2.79673,3575.6,3575.4,0.00578802]
[1732862421993,2.79675,3575.6,3575.4,0.00578802]
[1732862422187,2.79657,3575.8,3575.4,0.00578802]
[1732862422387,2.79681,3575.5,3575.4,0.00578802]
[1732862424426,2.79657,3575.8,3575.4,0.00578802]
[1732862424709,2.79657,3575.8,3575.5,0.05308722]
[1732862425578,2.79673,3575.6,3575.5,0.05308722]
[1732862428207,2.79657,3575.8,3575.5,0.05308722]
[1732862428429,2.79642,3576.0,3575.6,0.8291]
[1732862428623,4.0,3575.7,3575.6,0.8291]
[1732862428931,4.0,3575.7,3575.6,0.88216069]
[1732862429917,0.26047612,3575.7,3575.6,0.88216069]
[1732862430232,0.26047612,3575.7,3575.6,0.88212725]
[1732862430792,2.79665,3575.7,3575.6,0.05302725]
[1732862431022,2.79681,3575.5,3575.4,0.00578802]
[1732862431344,2.79681,3575.5,3575.4,0.05886834]
[1732862431702,3.05738973,3575.5,3575.4,0.05886834]
[1732862431900,0.26057973,3575.5,3575.4,0.05886834]
[1732862432233,0.26057135,3575.5,3575.4,0.08764389]
[1732862432444,0.26057135,3575.5,3575.4,0.77918802]
[1732862432736,3.05707135,3575.9,3575.4,0.86096862]
[1732862432899,2.79666,3575.7,3575.4,0.86096862]
[1732862433095,0.26057135,3575.6,3575.4,0.86096862]
[1732862433336,0.26057135,3575.5,3575.4,0.86096862]
[1732862438506,3.05738135,3575.5,3575.4,0.08756862]
[1732862438897,3.05738135,3575.5,3575.4,0.00578802]
[1732862439103,3.05783414,3575.5,3575.4,0.00578802]
[1732862443642,3.60783414,3575.5,3575.4,0.00578802]
[1732862444598,7.60783414,3575.5,3575.4,0.00578802]
[1732862446009,7.34681,3575.5,3575.4,0.00578802]
[1732862446352,7.6078521,3575.5,3575.4,0.00578802]
[1732862451294,8.85021479,3575.5,3575.4,0.00578802]
[1732862452152,7.6892521,3575.5,3575.4,0.00578802]
[1732862452996,8.92919604,3575.5,3575.4,0.00578802]
[1732862453363,8.9289744,3575.5,3575.4,0.00578802]
[1732862455485,10.09738741,3575.5,3575.4,0.00578802]
[1732862455856,9.83656695,3575.5,3575.4,0.00578802]
[1732862456051,10.09725537,3575.5,3575.4,0.00578802]
[1732862456368,8.92884236,3575.5,3575.4,0.00578802]
[1732862456568,8.92882491,3575.5,3575.4,0.00578802]
[1732862456767,10.09723792,3575.5,3575.4,0.00578802]
[1732862458417,7.05748097,3575.5,3575.4,0.00578802]
[1732862458776,4.26067097,3575.5,3575.4,0.81248802]
[1732862459583,4.26067097,3575.5,3575.4,0.89464507]
[1732862461316,0.26067097,3575.5,3575.4,0.89464507]
[1732862461830,0.26067097,3575.5,3575.4,3.60936802]
[1732862461989,0.26067097,3576.3,3575.7,2.79665]
[1732862462194,0.26067097,3576.2,3575.8,0.7694]
[1732862462486,0.26067097,3576.1,3575.8,0.85131385]
[1732862462707,0.26067097,3576.0,3575.8,0.85131385]
[1732862462877,0.26067097,3575.9,3575.8,1.21612524]
[1732862463081,0.26067097,3575.9,3575.8,0.85131385]
[1732862463279,3.05716097,3575.9,3575.8,0.85131385]
[1732862463502,0.26067097,3575.9,3575.8,0.85131385]
[1732862464214,3.05716097,3575.9,3575.8,0.85116888]
[1732862464378,3.05716097,3575.9,3575.4,0.00578802]
[1732862464379,0.26067097,3575.9,3575.5,0.7719]
[1732862464577,3.05728097,3575.8,3575.5,0.7719]
[1732862464776,0.26067097,3575.7,3575.6,0.08182355]
[1732862465016,3.05732097,3575.7,3575.6,0.08182355]
[1732862465816,0.26067097,3575.7,3575.6,0.08182355]
[1732862466705,3.05732097,3575.7,3575.6,0.08182355]
[1732862466913,3.60732097,3575.7,3575.6,0.08182355]
[1732862467291,0.55,3575.6,3575.4,0.00578802]
[1732862467636,3.60732097,3575.7,3575.4,0.00578802]
[1732862467637,3.05748097,3575.5,3575.4,0.00578802]
[1732862468005,0.26067097,3575.5,3575.4,0.00578802]
[1732862469134,2.79675,3575.6,3575.4,0.00578802]
[1732862469304,0.26065682,3575.5,3575.4,0.00578802]
[1732862469720,3.05746682,3575.5,3575.4,0.00578802]
[1732862469920,3.60746682,3575.5,3575.4,0.00578802]
[1732862470247,4.92881076,3575.5,3575.4,0.00578802]
[1732862471553,8.92881076,3575.5,3575.4,0.00578802]
[1732862472643,8.92879875,3575.5,3575.4,0.00578802]
[1732862472848,11.92879875,3575.5,3575.4,0.00578802]
[1732862473232,14.25072413,3575.5,3575.4,8.02e-06]
[1732862473449,11.92879875,3575.5,3575.4,8.02e-06]
[1732862473653,14.84778683,3575.5,3575.4,8.02e-06]
[1732862474251,10.84778683,3575.5,3575.4,8.02e-06]
[1732862474448,7.92879875,3575.5,3575.4,8.02e-06]
[1732862475062,9.02292915,3575.5,3575.4,8.02e-06]
[1732862475264,6.13885481,3575.5,3575.4,8.02e-06]
[1732862475436,3.05745481,3575.5,3575.4,8.02e-06]
[1732862475641,4.29739875,3575.5,3575.4,8.02e-06]
[1732862475857,3.05745481,3575.5,3575.4,8.02e-06]
[1732862476056,3.05735161,3575.5,3575.4,8.02e-06]
[1732862476773,3.60735161,3575.5,3575.4,8.02e-06]
[1732862477331,7.60735161,3575.5,3575.4,8.02e-06]
[1732862478371,10.68875161,3575.5,3575.4,8.02e-06]
[1732862478573,12.43943356,3575.5,3575.4,8.02e-06]
[1732862478787,10.68875161,3575.5,3575.4,8.02e-06]
[1732862479251,0.55,3574.8,3574.2,0.8213]
[1732862479456,0.26050239,3574.7,3574.3,0.08165177]
[1732862479768,0.26050239,3574.6,3574.3,0.08165177]
[1732862480075,0.26050239,3574.7,3574.3,0.08165177]
[1732862480276,0.26050239,3574.6,3574.4,0.8213]
[1732862480577,0.55,3575.1,3574.4,0.8213]
[1732862480739,0.55,3574.9,3574.5,0.08168352]
[1732862480939,0.26050239,3574.8,3574.5,0.08168352]
[1732862481146,0.26050239,3574.7,3574.5,0.08168352]
[1732862481381,0.55,3574.9,3574.5,0.08168352]
[1732862481541,0.26050239,3574.8,3574.5,0.08168352]
[1732862481851,0.26050239,3574.7,3574.5,0.08168352]
[1732862482055,0.26050239,3574.8,3574.5,0.08168352]
[1732862482282,0.26050239,3574.7,3574.5,0.08168352]
[1732862482484,0.26050239,3574.8,3574.5,0.08168352]
[1732862482652,0.26050239,3574.7,3574.5,0.08168352]
[1732862482985,0.26057609,3574.7,3574.5,0.08168352]
[1732862483478,0.26057609,3574.8,3574.5,0.08168352]
[1732862484442,0.26057609,3574.7,3574.5,0.08168352]
[1732862484780,3.05795609,3574.8,3574.5,0.08168352]
[1732862484985,0.26057609,3574.7,3574.5,0.08168352]
[1732862485283,3.05801609,3574.7,3574.5,0.08168352]
[1732862485446,3.60808609,3574.6,3574.5,0.08168352]
[1732862486852,0.81057609,3574.6,3574.1,0.7525]
[1732862487059,2.79768,3574.4,3574.2,0.08180742]
[1732862488042,2.79762,3574.5,3574.2,0.08180742]
[1732862488776,3.05812628,3574.4,3574.2,0.08180742]
[1732862488985,2.79769,3574.4,3574.2,0.08180742]
[1732862489592,2.79775,3574.3,3574.2,0.08180742]
[1732862490692,3.34762,3574.5,3574.2,0.08180742]
[1732862490855,0.26026636,3574.4,3574.2,0.08180742]
[1732862491057,2.79769,3574.4,3574.2,0.08180742]
[1732862492097,2.79775,3574.3,3574.2,0.08180742]
[1732862492659,3.0580513,3574.3,3574.2,0.08180742]
[1732862492859,3.6080513,3574.3,3574.2,0.08180742]
[1732862493103,3.6080513,3574.3,3573.6,0.8143]
[1732862493400,2.79792,3574.1,3573.6,0.8143]
[1732862493563,2.79792,3574.1,3573.7,0.0812874]
[1732862495284,3.34775,3574.3,3573.7,0.0812874]
[1732862495482,0.81039308,3574.2,3573.7,0.0812874]
[1732862495792,0.55,3574.2,3573.7,0.0812874]
[1732862496197,2.79793,3574.1,3573.7,0.0812874]
[1732862496357,2.79809,3573.9,3573.7,0.0812874]
[1732862496570,3.34814,3573.8,3573.7,0.0812874]
[1732862497459,0.55,3573.9,3573.7,0.0812874]
[1732862498187,2.79807,3573.9,3573.7,0.0812874]
[1732862498385,0.55,3573.8,3573.7,0.0812874]
[1732862498701,3.34814,3573.8,3573.7,0.0812874]
[1732862499214,0.55,3573.6,3573.3,0.821]
[1732862499561,0.55,3573.6,3573.4,0.08136951]
[1732862500279,2.79831,3573.6,3573.4,0.08136951]
[1732862501199,0.55,3573.7,3573.4,0.08136951]
[1732862501502,3.34822,3573.7,3573.4,0.08136951]
[1732862501963,2.79799,3574.0,3573.4,0.08136951]
[1732862502163,3.60865995,3573.9,3573.4,0.08136951]
[1732862502387,0.26055995,3573.8,3573.4,0.08136951]
[1732862503493,2.79822,3573.7,3573.4,0.08136951]
[1732862503699,3.34812,3573.9,3573.4,0.08136951]
[1732862503993,0.55,3573.8,3573.4,0.08136951]
[1732862504204,0.55,3574.0,3573.4,0.08136951]
[1732862504408,0.26052609,3573.9,3573.4,0.08136951]
[1732862504581,0.26052609,3573.9,3573.4,2.87980951]
[1732862504895,0.26052609,3573.8,3573.4,2.87980951]
[1732862505081,3.34801,3574.0,3573.5,0.8287]
[1732862505282,0.26052582,3573.9,3573.6,0.08160215]
[1732862505483,0.26052582,3573.8,3573.6,0.08160215]
[1732862505822,3.34801,3574.0,3573.6,0.08160215]
[1732862505995,0.26052741,3573.9,3573.6,0.08160215]
[1732862506198,3.05868741,3573.8,3573.6,0.08160215]
[1732862506423,3.76486117,3574.0,3573.6,0.08160215]